bitfinex-derivatives/quotes_ETHF0:USTF0_20250420
["timestamp","ask_amount","ask_price","bid_price","bid_amount"]
[1745112278308,2.82287,1617.4,1617.3,4.62489578]
[1745112281915,2.82287,1617.4,1617.3,4.62486943]
[1745112284517,1.5861,1617.4,1617.3,4.62507689]
[1745112284714,2.82287,1617.4,1617.3,2.5674]
[1745112285514,2.82287,1617.4,1617.3,4.62512859]
[1745112285716,11.84992,1617.4,1617.1,1.23699]
[1745112285906,1.23697,1617.2,1617.1,2.89869]
[1745112286102,1.23697,1617.2,1617.1,3.71978899]
[1745112286407,2.93837,1617.2,1617.1,3.71978899]
[1745112287013,2.93837,1617.2,1617.1,2.89869]
[1745112287217,2.93837,1617.2,1617.1,3.71977398]
[1745112288017,2.93837,1617.2,1617.1,3.71974624]
[1745112288410,1.23697,1617.2,1617.1,3.71974624]
[1745112292618,1.23697,1617.2,1617.1,2.89869]
[1745112292820,1.23697,1617.2,1617.1,3.71997711]
[1745112294524,1.23697,1617.2,1617.1,3.71995057]
[1745112295317,1.23697,1617.2,1617.1,3.72001686]
[1745112296414,2.9383,1617.3,1617.2,1.23692]
[1745112296609,2.9383,1617.3,1617.2,3.79303989]
[1745112296815,1.2369,1617.3,1617.2,3.79303989]
[1745112297413,7.69443,1617.4,1617.3,1.23685]
[1745112297616,7.69443,1617.4,1617.3,1.7348]
[1745112298727,7.69443,1617.4,1617.3,2.97165]
[1745112298927,7.69443,1617.4,1617.3,2.5738]
[1745112303135,7.69443,1617.4,1617.3,1.7348]
[1745112304037,1.23685,1617.3,1617.2,0.8734]
[1745112304238,2.96755,1617.3,1617.2,3.34592992]
[1745112306037,2.96755,1617.3,1617.2,3.34620002]
[1745112307236,2.96755,1617.3,1617.2,4.58312002]
[1745112307431,2.96755,1617.3,1617.2,4.58316534]
[1745112308641,2.96755,1617.3,1617.2,3.34624534]
[1745112309343,2.96755,1617.3,1617.2,3.34639909]
[1745112309650,3.964,1617.4,1617.2,3.34639909]
[1745112309834,3.964,1617.4,1617.3,3.69434909]
[1745112311134,5.20077,1617.4,1617.3,2.87215]
[1745112311438,5.20077,1617.4,1617.3,3.69404499]
[1745112312036,5.20077,1617.4,1617.3,3.69382669]
[1745112312349,3.964,1617.4,1617.3,3.69382669]
[1745112312536,5.20077,1617.4,1617.3,3.69382669]
[1745112314840,3.964,1617.4,1617.3,3.69382669]
[1745112315037,5.20077,1617.4,1617.3,3.69382669]
[1745112315935,3.964,1617.4,1617.3,3.69382669]
[1745112316147,5.20067,1617.6,1617.3,2.45697669]
[1745112316349,5.20067,1617.6,1617.5,1.23665]
[1745112316540,5.20067,1617.6,1617.5,2.05767235]
[1745112316742,5.20067,1617.6,1617.5,2.05762287]
[1745112316937,5.20067,1617.6,1617.5,3.80202287]
[1745112318052,5.20067,1617.6,1617.5,2.56537287]
[1745112318439,1.23669,1617.5,1617.4,5.29597]
[1745112318650,1.23669,1617.5,1617.4,2.90879975]
[1745112319140,1.23669,1617.5,1617.4,3.39111227]
[1745112319344,3.67069,1617.5,1617.4,1.719]
[1745112319544,1.23677,1617.4,1617.3,2.03735]
[1745112319741,3.73017,1617.4,1617.3,3.34030045]
[1745112319943,3.73017,1617.4,1617.3,2.53980045]
[1745112320141,3.73017,1617.4,1617.3,3.77665045]
[1745112320655,3.73017,1617.4,1617.3,4.60825045]
[1745112321452,3.73017,1617.4,1617.3,3.37140045]
[1745112322145,3.73017,1617.4,1617.3,4.60825045]
[1745112322351,3.73017,1617.4,1617.3,3.37148279]
[1745112322752,2.03616,1617.5,1617.3,4.60833279]
[1745112322954,2.03616,1617.5,1617.4,1.6757]
[1745112323152,3.67106,1617.5,1617.4,2.91247]
[1745112323743,2.87166,1617.5,1617.4,2.91247]
[1745112323946,2.87166,1617.5,1617.4,1.6757]
[1745112324349,1.23676,1617.5,1617.4,2.91247]
[1745112324653,11.10862,1617.6,1617.5,1.23669]
[1745112324953,11.10862,1617.6,1617.5,3.3837]
[1745112325149,12.74352,1617.6,1617.5,1.6757]
[1745112325447,1.23669,1617.5,1617.4,3.2078]
[1745112325661,2.86749,1617.5,1617.4,5.62477378]
[1745112325847,2.86749,1617.5,1617.4,1.5962]
[1745112326248,5.91969,1617.5,1617.4,1.5962]
[1745112326857,5.91969,1617.5,1617.4,2.41705042]
[1745112328049,5.91969,1617.5,1617.4,1.5962]
[1745112328556,5.91969,1617.5,1617.4,2.83297]
[1745112328857,3.46469,1617.5,1617.4,3.65385618]
[1745112329353,1.23669,1617.5,1617.4,3.65385618]
[1745112330450,1.23669,1617.5,1617.4,2.83297]
[1745112330660,1.23669,1617.5,1617.4,3.65370472]
[1745112331755,1.23669,1617.5,1617.4,3.65368472]
[1745112332450,1.23669,1617.5,1617.4,3.65370933]
[1745112332854,1.23669,1617.5,1617.4,2.41695933]
[1745112333862,1.23669,1617.5,1617.4,3.65372933]
[1745112335564,1.23669,1617.5,1617.4,4.44712062]
[1745112337249,1.23669,1617.5,1617.4,4.44725615]
[1745112338267,1.23669,1617.5,1617.4,0.82098615]
[1745112338562,1.23669,1617.5,1617.3,2.95687]
[1745112338563,1.23677,1617.4,1617.3,2.95687]
[1745112338762,1.23677,1617.4,1617.3,3.77820528]
[1745112339364,3.70355,1617.5,1617.4,1.23677]
[1745112339562,3.70355,1617.5,1617.4,3.39993528]
[1745112340060,3.70355,1617.5,1617.4,3.39998418]
[1745112340563,3.70355,1617.5,1617.4,1.7201]
[1745112340967,1.23677,1617.4,1617.3,1.23681]
[1745112341162,3.74987,1617.4,1617.3,2.54915544]
[1745112342864,3.74987,1617.4,1617.3,2.54906107]
[1745112343566,3.74987,1617.4,1617.3,3.78591107]
[1745112344668,3.74987,1617.4,1617.3,3.78581957]
[1745112345561,3.74987,1617.4,1617.3,2.54896957]
[1745112345763,7.71287,1617.4,1617.3,2.54896957]
[1745112346462,7.71287,1617.4,1617.3,2.54887053]
[1745112346664,7.71287,1617.4,1617.3,1.728]
[1745112347677,7.71287,1617.4,1617.3,2.54911539]
[1745112347969,1.23685,1617.3,1617.2,2.87692]
[1745112348170,2.82015,1617.3,1617.2,5.34645929]
[1745112348474,2.82015,1617.3,1617.2,5.34650153]
[1745112348872,2.82015,1617.3,1617.2,4.10958153]
[1745112350072,2.82015,1617.3,1617.2,5.34650153]
[1745112350277,2.82015,1617.3,1617.2,5.34644626]
[1745112352677,2.82015,1617.3,1617.2,4.10952626]
[1745112353281,1.23692,1617.2,1617.1,3.2078]
[1745112353475,3.63952,1617.2,1617.1,4.02871297]
[1745112354072,1.237,1617.1,1617.0,3.2997]
[1745112354278,1.237,1617.1,1617.0,12.32311868]
[1745112354772,1.237,1617.1,1617.0,11.50212398]
[1745112355282,1.237,1617.1,1617.0,12.32289854]
[1745112355480,1.237,1617.1,1617.0,11.50212398]
[1745112355977,1.237,1617.1,1617.0,12.3228947]
[1745112356685,2.83949,1617.2,1617.0,12.73920398]
[1745112356892,2.83949,1617.2,1617.1,1.6796]
[1745112357072,9.03049,1617.2,1617.1,1.6796]
[1745112361088,6.80249,1617.2,1617.1,1.6796]
[1745112361490,5.19999,1617.2,1617.1,1.6796]
[1745112362499,5.19999,1617.2,1617.1,2.9166]
[1745112363697,3.963,1617.2,1617.1,2.9166]
[1745112364999,5.19992,1617.2,1617.1,2.9166]
[1745112365499,5.19992,1617.2,1617.1,1.6796]
[1745112365892,7.76102,1617.2,1617.1,1.6796]
[1745112366803,5.19992,1617.2,1617.1,2.9166]
[1745112367199,5.19992,1617.2,1617.1,1.6796]
[1745112368492,5.19992,1617.2,1617.1,2.9166]
[1745112368900,5.19992,1617.2,1617.1,3.73731691]
[1745112369705,3.963,1617.2,1617.1,3.73731691]
[1745112370094,5.19992,1617.2,1617.1,3.73731691]
[1745112372909,5.19992,1617.2,1617.1,2.50031691]
[1745112373411,5.19992,1617.2,1617.1,3.73731691]
[1745112373711,5.19992,1617.2,1617.1,3.73772979]
[1745112375808,5.19992,1617.2,1617.1,3.73797099]
[1745112377011,3.963,1617.2,1617.1,3.73797099]
[1745112377405,8.40769,1617.3,1617.2,1.23692]
[1745112377604,5.19989,1617.3,1617.2,4.59499099]
[1745112378509,5.19984,1617.4,1617.3,1.23683]
[1745112378708,5.19984,1617.4,1617.3,2.483]
[1745112378912,5.19984,1617.4,1617.3,3.71985]
[1745112379612,5.19984,1617.4,1617.3,4.54074543]
[1745112380906,5.19984,1617.4,1617.3,3.71985]
[1745112389516,6.84714,1617.4,1617.3,3.71985]
[1745112391218,7.69154,1617.4,1617.3,3.71985]
[1745112393119,7.69154,1617.4,1617.3,4.54064216]
[1745112393621,7.69154,1617.4,1617.3,3.71985]
[1745112393818,1.23685,1617.3,1617.2,1.23689]
[1745112394014,2.496,1617.3,1617.1,6.02746]
[1745112394218,2.11142,1617.2,1617.1,6.02746]
[1745112394519,3.74412,1617.2,1617.1,6.84824231]
[1745112395924,3.74412,1617.2,1617.1,3.64028755]
[1745112396122,3.74412,1617.2,1617.1,6.84808755]
[1745112396318,1.23692,1617.2,1617.1,6.84808755]
[1745112399220,1.23692,1617.2,1617.1,6.84806755]
[1745112399824,2.90162,1617.2,1617.1,6.84806755]
[1745112400823,2.90162,1617.2,1617.1,3.64026755]
[1745112403122,2.90162,1617.2,1617.1,3.64054911]
[1745112404125,2.90162,1617.2,1617.1,0.82090911]
[1745112404926,1.237,1617.1,1617.0,7.67317]
[1745112405225,5.2,1617.1,1617.0,8.49420203]
[1745112406119,5.2,1617.1,1617.0,8.49415681]
[1745112406325,3.963,1617.1,1617.0,8.49415681]
[1745112406623,5.2,1617.1,1617.0,8.49415681]
[1745112407129,5.2,1617.1,1617.0,5.28636346]
[1745112410422,5.2,1617.1,1617.0,5.2861567]
[1745112410623,5.2,1617.1,1617.0,5.28615287]
[1745112411528,5.2,1617.1,1617.0,4.04908287]
[1745112411921,5.2,1617.1,1617.0,5.28616287]
[1745112412414,5.2,1617.1,1617.0,4.04908287]
[1745112412821,5.2,1617.1,1617.0,5.2861248]
[1745112413020,6.0214,1617.1,1617.0,5.2861248]
[1745112413215,6.0214,1617.1,1617.0,4.0490448]
[1745112413829,6.0214,1617.1,1617.0,3.2507448]
[1745112414028,6.8587,1617.1,1617.0,3.2507448]
[1745112414522,6.8587,1617.1,1617.0,3.66708]
[1745112414728,6.8587,1617.1,1617.0,4.4878214]
[1745112416330,6.8587,1617.1,1617.0,3.66708]
[1745112416525,6.8587,1617.1,1617.0,4.4878116]
[1745112417029,6.8587,1617.1,1617.0,3.66708]
[1745112417431,6.8587,1617.1,1617.0,4.48780112]
[1745112418125,6.8587,1617.1,1617.0,4.48779317]
[1745112418326,6.8587,1617.1,1617.0,3.25070645]
[1745112418625,6.8587,1617.1,1617.0,4.48778645]
[1745112420036,5.2,1617.1,1617.0,4.48778645]
[1745112421829,5.2,1617.1,1617.0,3.25070645]
[1745112422027,5.2,1617.1,1617.0,4.48778645]
[1745112425139,5.2,1617.1,1617.0,4.48802072]
[1745112426839,5.2,1617.1,1617.0,3.25094072]
[1745112427336,5.2,1617.1,1617.0,4.48802072]
[1745112430046,3.963,1617.1,1617.0,6.71602072]
[1745112430352,5.2,1617.1,1617.0,6.71602072]
[1745112433154,5.2,1617.1,1617.0,4.48802072]
[1745112438058,5.2,1617.1,1617.0,3.25094072]
[1745112438248,7.8,1617.1,1617.0,3.25094072]
[1745112438960,7.8,1617.1,1617.0,4.48802072]
[1745112439360,6.9551,1617.1,1617.0,4.48802072]
[1745112441862,6.9551,1617.1,1617.0,4.48928222]
[1745112443057,5.2,1617.1,1617.0,4.48928222]
[1745112445464,5.2,1617.1,1617.0,3.66708]
[1745112445669,5.2,1617.1,1617.0,4.48880888]
[1745112445861,5.2,1617.1,1617.0,3.25172888]
[1745112446061,6.9497,1617.1,1617.0,3.25172888]
[1745112447659,6.9497,1617.1,1617.0,2.43]
[1745112447859,6.9497,1617.1,1617.0,3.25171861]
[1745112448567,6.9497,1617.1,1617.0,4.48879861]
[1745112449667,6.9497,1617.1,1617.0,3.25171861]
[1745112451168,6.9497,1617.1,1617.0,3.2517415]
[1745112452964,6.9497,1617.1,1617.0,3.25167776]
[1745112457175,6.9497,1617.1,1617.0,3.25160283]
[1745112458576,6.9497,1617.1,1617.0,3.25166753]
[1745112462383,6.9497,1617.1,1617.0,3.25168513]
[1745112464283,6.9497,1617.1,1617.0,3.2517404]
[1745112467678,6.9497,1617.1,1617.0,3.25175903]
[1745112469872,6.9497,1617.1,1617.0,3.25204545]
[1745112470482,6.9497,1617.1,1617.0,3.25221235]
[1745112473493,6.9497,1617.1,1617.0,3.2522799]
[1745112475296,6.9497,1617.1,1617.0,3.25232192]
[1745112478496,5.2,1617.1,1617.0,3.25232192]
[1745112479302,5.2,1617.1,1617.0,2.43]
[1745112479807,5.2,1617.1,1617.0,3.25231412]
[1745112480004,5.2,1617.1,1617.0,2.43]
[1745112480204,5.2,1617.1,1617.0,3.25228922]
[1745112482309,5.2,1617.1,1617.0,3.25231446]
[1745112483000,6.8456,1617.1,1617.0,3.25231446]
[1745112483202,6.8456,1617.1,1617.0,0.82231446]
[1745112485110,1.23708,1617.0,1616.9,1.5827]
[1745112485316,1.23708,1617.0,1616.9,3.27759435]
[1745112485816,1.23708,1617.0,1616.9,2.40489435]
[1745112485817,4.44488,1617.0,1616.9,2.40489435]
[1745112486117,1.23715,1616.9,1616.8,9.00782398]
[1745112486299,2.84775,1616.9,1616.8,10.67872398]
[1745112487112,5.07575,1616.9,1616.8,10.67872398]
[1745112488718,5.07575,1616.9,1616.8,2.4763]
[1745112494121,2.84775,1616.9,1616.8,2.4763]
[1745112497520,11.22838,1617.2,1616.8,7.4763]
[1745112497521,5.4358,1617.2,1616.8,7.4763]
[1745112497716,2.228,1617.2,1617.0,4.44485]
[1745112497911,3.46492,1617.2,1617.1,1.6293]
[1745112498106,1.23692,1617.2,1617.1,3.2507]
[1745112506427,2.85852,1617.2,1617.1,3.2507]
[1745112508524,1.23692,1617.2,1617.1,3.2507]
[1745112517231,3.68652,1617.2,1617.1,2.417]
[1745112517437,3.68652,1617.2,1617.1,3.2476]
[1745112518534,1.23692,1617.2,1617.1,3.2476]
[1745112521342,2.94222,1617.2,1617.1,3.2476]
[1745112521533,2.94222,1617.2,1617.1,2.417]
[1745112524944,6.15002,1617.2,1617.1,1.6214]
[1745112525838,2.94222,1617.2,1617.1,1.6214]
[1745112528638,1.237,1617.1,1617.0,1.6586]
[1745112528833,3.7674,1617.1,1617.0,1.6586]
[1745112529037,1.23708,1617.0,1616.9,1.5845]
[1745112529344,5.19608,1617.0,1616.9,2.405982]
[1745112529542,5.19608,1617.0,1616.9,1.5845]
[1745112531542,1.23715,1616.9,1616.8,4.8532]
[1745112531743,1.23715,1616.9,1616.8,7.37575993]
[1745112535943,1.23715,1616.9,1616.8,1.702]
[1745112536156,1.23731,1616.7,1616.6,1.672]
[1745112536347,1.23746,1616.5,1616.4,8.20242398]
[1745112536540,1.23746,1616.5,1616.4,10.68808999]
[1745112537042,1.23746,1616.5,1616.4,10.68755173]
[1745112537551,1.23746,1616.5,1616.4,9.86742602]
[1745112537850,1.23746,1616.5,1616.4,11.49452602]
[1745112539744,1.23746,1616.5,1616.4,3.2991]
[1745112540045,3.42708234,1616.5,1616.4,3.2991]
[1745112540241,2.92306,1616.5,1616.4,3.2991]
[1745112540751,2.92306,1616.5,1616.4,2.4485]
[1745112541142,1.23754,1616.4,1616.3,3.2078]
[1745112541451,5.19554,1616.4,1616.3,1.6913]
[1745112541751,6.88114,1616.4,1616.3,1.6913]
[1745112544353,7.73244,1616.4,1616.3,1.6913]
[1745112545241,9.96044,1616.4,1616.3,1.6913]
[1745112545440,9.96044,1616.4,1615.9,3.2078]
[1745112545441,1.23784,1616.0,1615.9,3.2078]
[1745112545643,1.23799,1615.8,1615.7,12.45730019]
[1745112545843,5.19699,1615.8,1615.7,12.45730019]
[1745112546150,5.19699,1615.8,1615.7,14.16800019]
[1745112546351,6.85949,1615.8,1615.7,14.16800019]
[1745112547148,6.85949,1615.8,1615.7,12.45730019]
[1745112547356,10.06729,1615.8,1615.7,12.45730019]
[1745112547542,10.06729,1615.8,1615.7,14.98520019]
[1745112548756,3.959,1615.8,1615.7,2.5279]
[1745112549053,5.19699,1615.8,1615.7,2.5279]
[1745112555758,5.19699,1615.8,1615.7,3.76597]
[1745112556059,5.19699,1615.8,1615.7,2.5279]
[1745112556256,5.19699,1615.8,1615.7,4.7559]
[1745112556555,5.19699,1615.8,1615.7,5.99397]
[1745112557158,5.19699,1615.8,1615.7,4.7559]
[1745112558160,5.19699,1615.8,1615.7,2.5279]
[1745112559759,3.2078,1616.0,1615.9,1.23792]
[1745112560060,3.2078,1616.4,1616.3,1.23761]
[1745112560264,4.44538,1616.4,1616.2,3.81713]
[1745112560454,3.2078,1616.4,1616.3,2.93861]
[1745112561250,4.44534,1616.4,1616.3,2.93861]
[1745112561856,3.2078,1616.4,1616.3,2.93861]
[1745112564262,4.44532,1616.5,1616.3,2.93861]
[1745112564559,4.44532,1616.5,1616.4,1.6054]
[1745112571154,1.23761,1616.3,1616.2,2.11612]
[1745112571554,3.62849,1616.4,1616.2,2.11612]
[1745112571762,2.83489,1616.4,1616.2,2.11612]
[1745112571968,1.23761,1616.3,1616.2,2.11612]
[1745112572473,1.23761,1616.3,1616.2,3.85012]
[1745112572661,1.23761,1616.3,1616.2,2.6125]
[1745112574368,2.94271,1616.3,1616.2,2.6125]
[1745112574970,2.94271,1616.3,1616.2,3.85019]
[1745112579672,1.2376,1616.4,1616.3,1.23761]
[1745112579872,1.2376,1616.4,1616.3,2.99021]
[1745112581174,5.6911,1616.5,1616.3,2.99021]
[1745112581366,6.92856,1616.5,1616.4,1.7526]
[1745112586775,3.72076,1616.5,1616.4,1.7526]
[1745112587077,6.92856,1616.5,1616.4,1.7526]
[1745112589275,3.72076,1616.5,1616.4,1.7526]
[1745112589477,6.92856,1616.5,1616.4,1.7526]
[1745112590575,3.72076,1616.5,1616.4,1.7526]
[1745112590873,6.92856,1616.5,1616.4,1.7526]
[1745112591075,6.13496,1616.5,1616.4,1.7526]
[1745112599179,2.92716,1616.5,1616.4,1.7526]
[1745112599380,6.13496,1616.5,1616.4,1.7526]
[1745112600681,1.23754,1616.4,1616.3,0.8439]
[1745112600887,3.78224,1616.4,1616.3,0.8439]
[1745112601277,3.78224,1616.4,1616.2,2.5605]
[1745112601278,1.23761,1616.3,1616.2,2.5605]
[1745112601482,2.94491,1616.3,1616.2,5.46710047]
[1745112601982,2.94491,1616.3,1616.2,4.22947478]
[1745112602176,2.94491,1616.3,1616.2,0.8218896]
[1745112602485,3.74821,1616.3,1616.2,0.8218896]
[1745112603086,1.23769,1616.2,1616.1,5.852]
[1745112603275,1.23777,1616.1,1616.0,1.682]
[1745112603473,1.23777,1616.1,1616.0,2.50401925]
[1745112603674,1.23784,1616.0,1615.9,1.6935]
[1745112603891,1.23784,1616.0,1615.9,4.15324429]
[1745112604187,1.23784,1616.0,1615.9,4.15325758]
[1745112604388,3.79554,1616.0,1615.9,4.15266032]
[1745112606089,3.79554,1616.0,1615.9,3.3311]
[1745112607694,1.23807,1615.7,1615.6,4.44591]
[1745112607986,1.23802,1615.8,1615.7,3.77566]
[1745112608193,1.23802,1615.8,1615.7,4.59652379]
[1745112609601,1.23802,1615.8,1615.6,4.0703]
[1745112609602,1.23807,1615.7,1615.6,0.8625]
[1745112609910,3.70697,1615.7,1615.6,0.8625]
[1745112610102,1.23815,1615.6,1615.5,15.85280019]
[1745112610405,2.85255,1615.6,1615.5,14.98470019]
[1745112610903,2.85255,1615.6,1615.5,12.45730019]
[1745112611103,6.06035,1615.6,1615.5,12.45730019]
[1745112611806,1.23822,1615.5,1615.4,12.45730019]
[1745112612109,2.99232,1615.5,1615.4,12.45730019]
[1745112612413,6.95232,1615.5,1615.4,12.45730019]
[1745112616903,1.23838,1615.3,1615.2,1.7162]
[1745112617809,2.85808,1615.3,1615.2,1.7162]
[1745112621813,1.23845,1615.2,1615.1,0.8713]
[1745112622004,6.80405,1615.2,1615.1,0.8713]
[1745112622520,6.80405,1615.2,1615.1,2.4795]
[1745112622703,5.19945,1615.2,1615.1,2.4795]
[1745112635723,3.09634,1615.1,1614.7,9.0598]
[1745112635914,3.95973,1615.0,1614.8,2.5299]
[1745112636114,5.20068,1614.9,1614.8,2.5299]
[1745112641526,3.2078,1615.0,1614.9,1.23868]
[1745112641728,5.20057,1615.1,1615.0,1.23861]
[1745112641923,7.14633,1615.4,1615.3,1.23838]
[1745112642228,1.23833,1615.4,1615.3,1.23838]
[1745112642621,1.23833,1615.4,1615.3,2.86538]
[1745112643628,1.23833,1615.4,1615.3,3.68667307]
[1745112644232,1.23833,1615.4,1615.3,2.86538]
[1745112644423,5.20027,1615.5,1615.4,1.2383]
[1745112644623,5.20027,1615.5,1615.4,4.5042]
[1745112645229,5.20027,1615.5,1615.4,5.4939]
[1745112646235,5.20027,1615.5,1615.4,3.2659]
[1745112648921,7.74807,1615.5,1615.4,2.4642]
[1745112649135,7.74807,1615.5,1615.4,1.627]
[1745112649335,1.2383,1615.4,1615.3,0.8057]
[1745112649630,2.9927,1615.4,1615.3,1.7085]
[1745112649831,1.23838,1615.3,1615.2,0.8321]
[1745112650026,2.99278,1615.3,1615.2,0.8321]
[1745112650829,2.99278,1615.3,1615.2,2.5406]
[1745112651132,2.99278,1615.3,1615.2,4.7686]
[1745112652125,2.99278,1615.3,1615.2,2.5406]
[1745112653135,2.99278,1615.3,1615.2,3.77905]
[1745112653837,2.99278,1615.3,1615.2,2.5406]
[1745112654135,2.99278,1615.3,1615.2,2.228]
[1745112654438,6.20058,1615.3,1615.2,2.228]
[1745112655234,1.23853,1615.1,1615.0,2.4937]
[1745112655938,1.23853,1615.1,1615.0,3.73231]
[1745112656136,1.23853,1615.1,1615.0,5.96031]
[1745112656642,1.23853,1615.1,1615.0,4.7217]
[1745112657331,1.23853,1615.1,1615.0,5.96031]
[1745112658140,1.23853,1615.1,1615.0,4.7217]
[1745112658744,1.23853,1615.1,1615.0,5.96031]
[1745112658946,5.19953,1615.2,1615.0,5.96031]
[1745112659241,5.19953,1615.2,1615.1,2.5111]
[1745112661746,3.961,1615.2,1615.1,3.74963]
[1745112661945,11.10734,1615.4,1615.2,1.23845]
[1745112662141,11.10734,1615.4,1615.3,0.8517]
[1745112662346,11.5713,1615.6,1615.3,2.09003]
[1745112662538,1.23822,1615.5,1615.4,2.4171]
[1745112662841,1.23822,1615.5,1615.4,0.797]
[1745112663346,1.23822,1615.5,1615.4,3.025]
[1745112664949,3.961,1615.6,1615.5,1.23822]
[1745112665148,4.4459,1615.7,1615.5,3.46622]
[1745112665448,4.4459,1615.7,1615.6,0.7934]
[1745112666038,3.2078,1615.7,1615.6,2.03155]
[1745112666246,3.961,1615.8,1615.7,1.23807]
[1745112666445,3.961,1615.8,1615.7,2.10227]
[1745112666949,5.19899,1615.8,1615.7,0.8642]
[1745112667649,5.19899,1615.8,1615.7,2.10227]
[1745112667946,5.19899,1615.8,1615.7,0.8642]
[1745112670255,1.23807,1615.7,1615.6,4.0012]
[1745112671043,2.86437,1615.7,1615.6,4.0012]
[1745112671849,1.23822,1615.5,1615.4,4.069]
[1745112672053,1.23822,1615.5,1615.4,4.8844]
[1745112672254,1.23822,1615.5,1615.4,1.6766]
[1745112672754,1.23822,1615.5,1615.4,2.9149]
[1745112673651,2.8645,1615.6,1615.4,2.9149]
[1745112673951,1.23822,1615.5,1615.4,2.9149]
[1745112674154,1.23819,1615.6,1615.4,2.9149]
[1745112674755,2.6148,1615.7,1615.4,2.9149]
[1745112675059,1.23822,1615.5,1615.4,1.6766]
[1745112675451,5.19922,1615.5,1615.4,1.6766]
[1745112676553,1.23838,1615.3,1615.2,3.2078]
[1745112676858,1.23838,1615.3,1615.2,4.8826985]
[1745112677156,1.23838,1615.3,1615.2,8.3491485]
[1745112677353,1.23837,1615.4,1615.2,8.3491485]
[1745112677547,1.2383,1615.4,1615.3,0.8196985]
[1745112677948,2.9768,1615.4,1615.3,0.8196985]
[1745112678148,1.2383,1615.4,1615.3,2.0580785]
[1745112678560,3.961,1615.5,1615.4,1.2383]
[1745112678561,5.19928,1615.5,1615.4,1.2383]
[1745112678756,1.23828,1615.5,1615.4,6.07876771]
[1745112679154,1.23828,1615.5,1615.4,8.30676771]
[1745112680770,1.23828,1615.5,1615.4,8.30668401]
[1745112682361,1.23828,1615.5,1615.4,7.4872]
[1745112682660,1.23828,1615.5,1615.4,8.30686833]
[1745112683160,1.23828,1615.5,1615.4,7.4872]
[1745112686766,1.23828,1615.5,1615.4,6.2489]
[1745112686966,2.89148,1615.5,1615.4,6.2489]
[1745112687462,2.89148,1615.5,1615.4,4.0209]
[1745112688253,2.89148,1615.5,1615.4,0.8131]
[1745112688962,2.89148,1615.5,1615.4,2.0514]
[1745112689259,2.89148,1615.5,1615.4,3.33692506]
[1745112689968,1.2383,1615.4,1615.3,1.7024]
[1745112690158,2.9892,1615.4,1615.3,2.52394352]
[1745112690356,6.9502,1615.4,1615.3,0.82154352]
[1745112690557,1.23838,1615.3,1615.2,4.0216]
[1745112690759,4.66648,1615.3,1615.2,4.84325342]
[1745112691567,4.66648,1615.3,1615.2,6.53999401]
[1745112692865,4.66648,1615.3,1615.2,3.33219401]
[1745112693468,4.66648,1615.3,1615.2,2.5106]
[1745112695769,3.83778,1615.3,1615.2,2.5106]
[1745112696159,5.19937,1615.4,1615.2,3.74905]
[1745112696356,5.19937,1615.4,1615.3,2.4467]
[1745112697166,3.961,1615.4,1615.3,3.68508]
[1745112697371,3.961,1615.4,1615.3,4.50626991]
[1745112697569,1.23825,1615.5,1615.4,1.2383]
[1745112697762,1.23825,1615.5,1615.4,2.9301]
[1745112698270,1.23825,1615.5,1615.4,5.1581]
[1745112699168,1.23825,1615.5,1615.4,3.9198]
[1745112699473,1.23825,1615.5,1615.4,5.1581]
[1745112699668,1.23825,1615.5,1615.4,3.9198]
[1745112700360,1.23825,1615.5,1615.4,1.6918]
[1745112701273,2.87685,1615.5,1615.4,1.6918]
[1745112704171,1.23825,1615.5,1615.4,2.9301]
[1745112705071,1.23825,1615.5,1615.4,5.1581]
[1745112709375,1.23825,1615.5,1615.4,5.9795897]
[1745112709776,1.23825,1615.5,1615.4,5.97958365]
[1745112710176,1.23825,1615.5,1615.4,5.97958248]
[1745112712077,7.1688,1615.6,1615.5,1.23822]
[1745112712271,7.1688,1615.6,1615.5,3.66742]
[1745112712577,7.1688,1615.6,1615.5,4.4890068]
[1745112713172,3.961,1615.6,1615.5,7.6968068]
[1745112714079,5.19915,1615.6,1615.5,7.6968068]
[1745112714280,5.19915,1615.6,1615.5,9.9248068]
[1745112714577,3.961,1615.6,1615.5,9.9248068]
[1745112714781,5.19915,1615.6,1615.5,9.9248068]
[1745112715577,1.23815,1615.6,1615.5,9.9248068]
[1745112716982,1.23813,1615.7,1615.5,9.9248068]
[1745112717179,1.23813,1615.7,1615.6,2.4646]
[1745112717483,1.23813,1615.7,1615.6,3.70275]
[1745112718382,1.23813,1615.7,1615.6,2.4646]
[1745112718582,1.23813,1615.7,1615.6,3.70275]
[1745112719177,1.23813,1615.7,1615.6,2.4646]
[1745112719377,2.85453,1615.7,1615.6,2.4646]
[1745112721586,2.85453,1615.7,1615.6,1.6094]
[1745112722989,1.23815,1615.6,1615.5,0.8154]
[1745112723189,3.73035,1615.6,1615.5,3.86506258]
[1745112723380,3.73035,1615.6,1615.5,4.6395]
[1745112723584,3.73035,1615.6,1615.5,5.46121654]
[1745112723782,3.73035,1615.6,1615.5,5.87772]
[1745112723996,2.92715,1615.6,1615.5,4.6395]
[1745112724291,2.92715,1615.6,1615.5,6.69943843]
[1745112725592,2.92715,1615.6,1615.5,5.46121843]
[1745112726305,2.92715,1615.6,1615.5,5.46139149]
[1745112727100,2.92715,1615.6,1615.5,3.23339149]
[1745112727407,2.92715,1615.6,1615.5,4.47161149]
[1745112728404,2.92715,1615.6,1615.5,3.23339149]
[1745112729306,2.92715,1615.6,1615.5,4.47161149]
[1745112729509,2.92715,1615.6,1615.5,4.47175505]
[1745112729900,2.04133,1615.7,1615.5,3.23353505]